{"text_format":"1","workbook":"xlsx","n_sheets":4,"sheets":["Prodotti","Clienti","REGISTRO","Fattura"],"not_rendered":{"charts":0,"images":0,"macros":1,"external_links":0,"defined_names":3,"comments":0,"pivot_tables":0},"unopened":[],"bounds":{"document_bytes":16777216,"sheet_cells":100000,"rows_first":2000,"rows_last":500,"rows_between":2000,"halvings":0,"cell_chars":16384,"cell_head_chars":4096},"cells_cut":0,"cells_raw":0,"read":"whole","date_system":"1900"}

{"sheet":"Prodotti","index":0,"n_rows":2,"n_cols":2,"rows_kept":2,"cut":false,"hidden":false,"merged":[]}
["Descrizione","Prezzo"]
["eee",23]

{"sheet":"Clienti","index":1,"n_rows":2,"n_cols":7,"rows_kept":2,"cut":false,"hidden":false,"merged":[]}
["Cliente","Indirizzo","CAP","Città","Provincia","Paese","PI/CodiceFiscale"]
["dd","rrr"]

{"sheet":"REGISTRO","index":2,"n_rows":2,"n_cols":4,"rows_kept":2,"cut":false,"hidden":false,"merged":[[0,0,0,3]]}
["ARCHIVIO FATTURE"]
["Data","Numero","Destinatario","Importo"]

{"sheet":"Fattura","index":3,"n_rows":34,"n_cols":5,"rows_kept":34,"cut":false,"hidden":false,"merged":[[34,1,34,4],[0,1,0,4],[30,1,30,3],[14,2,14,4],[15,2,15,4],[16,2,16,4],[33,1,33,3],[31,1,31,3],[32,1,32,3],[17,2,17,4],[12,1,12,4]]}
[]
[]
[]
[]
[]
[]
[null,null,null,null,"Spettabile"]
[null,null,null,null,"dd"]
[null,null,null,null,{"$f":"IF(E8=\"\",\"\",VLOOKUP(E8,Clienti!A2:G21,2,FALSE))","v":"rrr"}]
[null,null,null,null,{"$f":"IF(E8=\"\",\"\",VLOOKUP(E8,Clienti!A2:G21,3,FALSE)&\" \"&VLOOKUP(E8,Clienti!A2:G21,4,FALSE)&\" \"&UPPER(VLOOKUP(E8,Clienti!A2:G21,5,FALSE)))","v":"  "}]
[null,null,null,null,{"$f":"IF(E8=\"\",\"\",VLOOKUP(E8,Clienti!A2:G21,6,FALSE))","v":0}]
[]
[null,"Fattura commerciale"]
[]
[null,"N. Fattura","Mod. pagamento"]
[null,4]
[null,"Data Fattura","Banca appoggio"]
[null,{"$f":"TODAY()","v":"2018-11-18"}]
[]
[null,"Descrizione Articolo","Quantità","Prezzo u. (€)","Importo (€)"]
[null,"eee",4,{"$f":"IF(B21=\"\",0,VLOOKUP(B21,Prodotti!$A$1:$B$21,2,FALSE))","v":23},{"$f":"C21*D21","v":92}]
[null,null,null,{"$f":"IF(B22=\"\",0,VLOOKUP(B22,Prodotti!$A$1:$B$21,2,FALSE))","v":0},{"$f":"C22*D22","v":0}]
[null,null,null,{"$f":"IF(B23=\"\",0,VLOOKUP(B23,Prodotti!$A$1:$B$21,2,FALSE))","v":0},0]
[null,null,null,{"$f":"IF(B24=\"\",0,VLOOKUP(B24,Prodotti!$A$1:$B$21,2,FALSE))","v":0},0]
[null,null,null,{"$f":"IF(B25=\"\",0,VLOOKUP(B25,Prodotti!$A$1:$B$21,2,FALSE))","v":0},0]
[null,null,null,{"$f":"IF(B26=\"\",0,VLOOKUP(B26,Prodotti!$A$1:$B$21,2,FALSE))","v":0},0]
[null,null,null,{"$f":"IF(B27=\"\",0,VLOOKUP(B27,Prodotti!$A$1:$B$21,2,FALSE))","v":0},0]
[null,null,null,{"$f":"IF(B28=\"\",0,VLOOKUP(B28,Prodotti!$A$1:$B$21,2,FALSE))","v":0},0]
[null,null,null,{"$f":"IF(B29=\"\",0,VLOOKUP(B29,Prodotti!$A$1:$B$21,2,FALSE))","v":0},0]
[null,null,null,{"$f":"IF(B30=\"\",0,VLOOKUP(B30,Prodotti!$A$1:$B$21,2,FALSE))","v":0},0]
[null,"Totale",null,null,{"$f":"SUM(E21:E30)","v":92}]
[null,"Spese non documentate"]
[null,"Totale imponibile",null,null,{"$f":"E31+E32","v":92}]
[null,"TOTALE Fattura",null,null,{"$f":"SUM(E33:E33)","v":92}]